lending/lending_fUSD_20260206
["ID","MTS","AMOUNT","RATE_DAILY","PERIOD"]
[404667601,1770401950076,151.0,0.00044188,120]
[404667602,1770401950313,151.0,0.00044172,120]
[404667603,1770401950367,151.0,0.00044172,120]
[404667604,1770401950561,601.422256,0.00044172,120]
[404667605,1770401950601,151.0,0.00044172,120]
[404667606,1770401950665,151.0,0.00044172,120]
[404667607,1770401950882,601.422256,0.00044172,120]
[404667608,1770401950923,151.0,0.00044172,120]
[404667609,1770401951166,151.0,0.00044172,120]
[404667610,1770401951207,601.422256,0.00044172,120]
[404667611,1770401951250,151.0,0.00044172,120]
[404667612,1770401951448,151.0,0.00044172,120]
[404667613,1770401951490,601.422256,0.00044172,120]
[404667614,1770401951537,151.0,0.00044172,120]
[404667615,1770401951739,151.0,0.00044172,120]
[404667616,1770401951782,601.422256,0.00044172,120]
[404667617,1770401951828,151.0,0.00044172,120]
[404667618,1770401952044,151.0,0.00044172,120]
[404667619,1770401952085,601.422256,0.00044172,120]
[404667620,1770401952126,151.0,0.00044172,120]
[404667621,1770401952326,288.99924,0.00044172,120]
[404667622,1770401952368,601.422256,0.00044172,120]
[404667623,1770401952410,151.0,0.00044172,120]
[404667624,1770401952655,601.422256,0.00044172,120]
[404667625,1770401952700,151.0,0.00044172,120]
[404667626,1770401952947,601.422256,0.00044172,120]
[404667627,1770401952991,151.0,0.00044172,120]
[404667628,1770401953245,601.422256,0.00044172,120]
[404667629,1770401953291,151.0,0.00044172,120]
[404667630,1770401953529,151.0,0.00044172,120]
[404667631,1770401953569,601.422256,0.00044172,120]
[404667632,1770401953825,151.0,0.00044172,120]
[404667633,1770401953865,601.422256,0.00044172,120]
[404667634,1770401954118,151.0,0.00044172,120]
[404667635,1770401954207,601.422256,0.00044172,120]
[404667636,1770401954409,151.0,0.00044172,120]
[404667637,1770401954724,151.0,0.00044172,120]
[404667638,1770401954829,601.422256,0.00044172,120]
[404667639,1770401954999,151.0,0.00044172,120]
[404667640,1770401955113,601.422256,0.00044172,120]
[404667641,1770401955284,235.921672,0.00044172,120]
[404667642,1770401955422,601.422256,0.00044172,120]
[404667643,1770401955737,601.422256,0.00044172,120]
[404667644,1770401956034,601.422256,0.00044172,120]
[404667645,1770401956183,151.0,0.00044172,120]
[404667646,1770401956382,601.422256,0.00044172,120]
[404667647,1770401956467,151.0,0.00044172,120]
[404667648,1770401956694,601.42226,0.00044172,120]
[404667649,1770401956766,151.0,0.00044172,120]
[404667650,1770401957058,151.0,0.00044172,120]
[404667651,1770401957441,151.0,0.00044172,120]
[404667652,1770401957766,151.0,0.00044172,120]
[404667653,1770401958092,151.0,0.00044172,120]
[404667654,1770401958544,151.0,0.00044172,120]
[404667655,1770401958837,151.0,0.00044172,120]
[404667656,1770401959192,151.0,0.00044172,120]
[404667657,1770401959648,151.0,0.00044172,120]
[404667658,1770401959841,246.598406,0.00044172,120]
[404667659,1770401967250,225.654878,0.00044172,120]
[404667660,1770401999981,150.0,0.00035616,120]
[404667661,1770402030217,151.0,0.00044172,120]
[404667662,1770402032518,151.0,0.00044172,90]
[404667663,1770402032791,151.0,0.00044172,90]
[404667664,1770402033310,151.0,0.00044172,90]
[404667665,1770402033352,151.0,0.00044172,90]
[404667666,1770402033643,151.0,0.00044172,90]
[404667667,1770402034269,151.0,0.00044172,90]
[404667668,1770402034558,151.0,0.00044172,90]
[404667669,1770402034866,151.0,0.00044172,90]
[404667670,1770402035148,151.0,0.00044172,90]
[404667671,1770402035449,151.0,0.00044172,90]
[404667672,1770402035745,236.474464,0.00044172,90]
[404667673,1770402053553,160.0,0.00035616,120]
[404667674,1770402060968,213.32,8.007e-05,2]
[404667675,1770402081486,151.0,0.00044172,120]
[404667676,1770402308330,5267.36173861,0.00044172,120]
[404667677,1770402319285,5860.66829795,0.00044172,120]
[404667678,1770402334242,3793.2,0.00035616,120]
[404667680,1770402343870,132599.20875645,0.00044172,120]
[404667681,1770402345650,12632.12117516,0.00044172,120]
[404667682,1770402345998,5525.95916819,0.0001995,15]
[404667683,1770402359149,5000.01,8e-05,2]
[404667684,1770402359170,5000.01,8e-05,2]
[404667685,1770402359189,5000.01,8e-05,2]
[404667686,1770402359210,3148.6207843,8e-05,2]
[404667687,1770402370943,30682.63209817,0.00044172,120]
[404667688,1770402405540,3056.20608291,0.00035616,120]
[404667689,1770402413619,2299.7,9.465e-05,2]
[404667691,1770402424238,5159.57737065,0.00044172,120]
[404667692,1770402445133,9856.77044528,0.00044172,120]
[404667693,1770402449836,5812.33334308,0.00044172,120]
[404667694,1770402455216,15521.45746626,0.00044172,120]
[404667695,1770402463607,10640.48894799,0.00044172,120]
[404667696,1770402481692,1871.16496593,0.0002,14]
[404667697,1770402485086,828.589143,0.00044172,120]
[404667699,1770402499082,2700.31,9.436e-05,2]
[404667700,1770402499103,735.32,9.436e-05,2]
[404667701,1770402499462,7761.83642515,0.00044172,120]
[404667702,1770402501885,12178.90506394,0.00044172,120]
[404667703,1770402502983,10715.73644662,0.00044172,120]
[404667705,1770402505684,12371.31036969,0.00044172,120]
[404667706,1770402507476,6440.04316783,0.00044172,120]
[404667707,1770402510988,37128.54138595,0.00044172,120]
[404667708,1770402518672,5118.32216997,5.22e-06,30]
[404667709,1770402542316,729.0,0.0003561,120]
[404667710,1770402543093,1910.0,0.0003561,120]
[404667711,1770402543883,853.0,0.0003561,120]
[404667712,1770402545222,1284.0,0.0003561,120]
[404667713,1770402546036,478.0,0.0003561,120]
[404667714,1770402546947,330.0,0.0003561,120]
[404667715,1770402547610,1252.0,0.0003561,120]
[404667716,1770402548386,1407.0,0.0003561,120]
[404667717,1770402549198,985.0,0.0003561,120]
[404667718,1770402549974,1446.0,0.0003561,120]
[404667719,1770402550759,1515.0,0.0003561,120]
[404667720,1770402551534,894.0,0.0003561,120]
[404667721,1770402552352,1516.0,0.0003561,120]
[404667722,1770402553126,1836.0,0.0003561,120]
[404667723,1770402555556,449.0,0.0003561,120]
[404667724,1770402556338,384.0,0.0003561,120]
[404667725,1770402557175,383.0,0.0003561,120]
[404667726,1770402557890,495.0,0.0003561,120]
[404667727,1770402558141,-236.9,9.575e-05,2]
[404667728,1770402558166,-250.0,9.641e-05,2]
[404667729,1770402558188,-500.0,9.707e-05,2]
[404667730,1770402558213,-250.0,9.74e-05,2]
[404667731,1770402558237,-1013.85,9.793e-05,2]
[404667732,1770402558262,-300.0,9.864e-05,2]
[404667733,1770402558288,-470.58606887,9.865e-05,2]
[404667734,1770402558310,-305.10519899,9.865e-05,2]
[404667735,1770402558331,-500.0,9.865e-05,2]
[404667736,1770402558353,-195.83290446,9.865e-05,2]
[404667737,1770402558374,-159.25413333,9.865e-05,2]
[404667738,1770402558399,-500.0,9.865e-05,2]
[404667739,1770402558425,-336.51449081,9.865e-05,2]
[404667740,1770402558449,-169.85983954,9.865e-05,2]
[404667741,1770402558664,456.0,0.0003561,120]
[404667742,1770402559461,231.0,0.0003561,120]
[404667743,1770402560281,224.0,0.0003561,120]
[404667744,1770402561075,347.0,0.0003561,120]
[404667745,1770402603582,1557.0,0.0003561,120]
[404667746,1770402604475,1112.0,0.0003561,120]
[404667747,1770402605353,1184.0,0.0003561,120]
[404667748,1770402606379,705.0,0.0003561,120]
[404667749,1770402607240,1774.0,0.0003561,120]
[404667750,1770402610387,245.0,0.0003561,120]
[404667751,1770402611264,395.2336561,0.0003561,120]
[404667757,1770402631945,-150.0,9.838e-05,2]
[404667760,1770402631955,-150.0,9.838e-05,2]
[404667763,1770402631965,-231.0,9.838e-05,2]
[404667765,1770402631974,-250.0,9.85e-05,2]
[404667766,1770402631983,-151.0,9.863e-05,2]
[404667768,1770402631993,-151.0,9.863e-05,2]
[404667770,1770402632002,-151.0,9.863e-05,2]
[404667772,1770402632011,-150.0,9.864e-05,2]
[404667773,1770402632021,-330.14016046,9.865e-05,2]
[404667774,1770402632031,-197.2723171,9.865e-05,2]
[404667775,1770402632040,-500.0,9.865e-05,2]
[404667776,1770402632050,-500.0,9.865e-05,2]
[404667777,1770402632060,-500.0,9.865e-05,2]
[404667778,1770402632071,-500.0,9.865e-05,2]
[404667779,1770402632081,-500.0,9.865e-05,2]
[404667780,1770402632090,-500.0,9.865e-05,2]
[404667781,1770402632100,-500.0,9.865e-05,2]
[404667782,1770402632109,-436.81758413,9.865e-05,2]
[404667783,1770402632121,-63.18241587,9.865e-05,2]
[404667784,1770402632131,-500.0,9.865e-05,2]
[404667785,1770402632140,-500.0,9.865e-05,2]
[404667786,1770402632149,-500.0,9.865e-05,2]
[404667787,1770402632159,-500.0,9.865e-05,2]
[404667788,1770402632173,-500.0,9.865e-05,2]
[404667789,1770402632183,-500.0,9.865e-05,2]
[404667790,1770402632194,-500.0,9.865e-05,2]
[404667791,1770402632203,-500.0,9.865e-05,2]
[404667792,1770402632213,-500.0,9.865e-05,2]
[404667793,1770402632222,-500.0,9.865e-05,2]
[404667795,1770402632232,-500.0,9.865e-05,2]
[404667796,1770402632241,-500.0,9.865e-05,2]
[404667797,1770402632251,-339.2759524,9.865e-05,2]
[404667799,1770402632261,-500.0,9.865e-05,2]
[404667800,1770402632270,-500.0,9.865e-05,2]
[404667801,1770402632279,-500.0,9.865e-05,2]
[404667802,1770402632289,-976.0,9.865e-05,2]
[404667803,1770402632299,-25896.54163173,9.866e-05,2]
[404667804,1770402632314,-3474103.45836827,9.866e-05,2]
[404667805,1770402632325,-924.7611406,9.875e-05,2]
[404667806,1770402632335,-160.32704843,9.875e-05,2]
[404667807,1770402632344,-1107.6371126,9.875e-05,2]
[404667808,1770402632354,-1852.42,9.875e-05,2]
[404667809,1770402632363,-150.0,9.893e-05,2]
[404667810,1770402632372,-150.0,9.948e-05,2]
[404667811,1770402632382,-11966.05,9.966e-05,2]
[404667812,1770402632391,-832.31350737,0.0001,2]
[404667813,1770402632401,-200.0,0.00010002,2]
[404667814,1770402632411,-236.9,0.00010107,2]
[404667815,1770402632420,-832.31350737,0.00010152,2]
[404667816,1770402632430,-67992.3665,0.00010162,2]
[404667817,1770402632439,-2500.0,0.00010162,2]
[404667818,1770402632449,-3160.9711,0.00010362,2]
[404667819,1770402632458,-500.0,0.00010373,2]
[404667820,1770402632468,-525.12123328,0.00010373,2]
[404667821,1770402632477,-500.0,0.00010373,2]
[404667822,1770402632487,-2245.364,0.00010452,2]
[404667823,1770402632496,-189.713,0.00010452,2]
[404667824,1770402632506,-151.0,0.00010455,2]
[404667825,1770402632516,-151.0,0.00010455,2]
[404667826,1770402632526,-151.0,0.00010455,2]
[404667827,1770402632535,-151.0,0.00010455,2]
[404667828,1770402632545,-151.0,0.00010455,2]
[404667829,1770402632555,-151.0,0.00010455,2]
[404667830,1770402632564,-151.0,0.00010455,2]
[404667831,1770402632575,-151.0,0.00010455,2]
[404667832,1770402632585,-151.0,0.00010455,2]
[404667833,1770402632595,-151.0,0.00010455,2]
[404667834,1770402632604,-151.0,0.00010455,2]
[404667835,1770402632614,-151.0,0.00010455,2]
[404667836,1770402632624,-151.0,0.00010455,2]
[404667837,1770402632634,-151.0,0.00010455,2]
[404667838,1770402632644,-151.0,0.00010455,2]
[404667839,1770402632654,-151.0,0.00010455,2]
[404667840,1770402632663,-151.0,0.00010455,2]
[404667841,1770402632673,-151.0,0.00010455,2]
[404667842,1770402632682,-267.57957864,0.00010455,2]
[404667843,1770402632692,-8911.7183,0.00010462,2]
[404667844,1770402632702,-250.0,0.00010533,2]
[404667845,1770402632711,-151.0,0.00010559,2]
[404667846,1770402632721,-602.87681998,0.00010562,2]
[404667847,1770402632733,-32698.80438002,0.00010562,2]
[404667848,1770402632742,-1000.0,0.00010562,2]
[404667849,1770402632752,-236.9,0.00010639,2]
[404667850,1770402632762,-500.0,0.00010677,2]
[404667851,1770402632772,-250.0,0.00010822,2]
[404667852,1770402632781,-425.71181721,0.000109,2]
[404667853,1770402632791,-467.05696747,0.00010921,2]
[404667854,1770402632801,-607.21812372,0.00010921,2]
[404667855,1770402632993,-425.71181716,0.00010936,2]
[404667856,1770402633003,-150.0,0.00010959,2]
[404667857,1770402633012,-177.69479531,0.00010959,2]
[404667858,1770402633024,-11177.03195943,0.00011099,2]
[404667859,1770402633033,-9775.88717921,0.00011099,2]
[404667860,1770402633046,-1148.78266955,0.00011099,2]
[404667861,1770402633058,-252.3621106,0.00011099,2]
[404667862,1770402633068,-236.9,0.00011171,2]
[404667863,1770402633084,-622.85574677,0.00011281,2]
[404667864,1770402633096,-384.88090561,0.00011281,2]
[404667868,1770402638043,-2969.60590611,0.00011281,2]
[404667869,1770402638152,-707.82344134,0.00011281,2]
[404667870,1770402638164,-5314.82400017,0.00011281,2]
[404667871,1770402638174,-999.99,0.00011281,2]
[404667872,1770402638185,-9999.99,0.00011281,2]
[404667873,1770402638195,-5274.08,0.00011281,2]
[404667874,1770402638205,-299.99,0.00011281,2]
[404667875,1770402638216,-150.99,0.00011281,2]
[404667876,1770402638226,-150.99,0.00011281,2]
[404667877,1770402638237,-11177.03195936,0.00011358,2]
[404667878,1770402638247,-236.9,0.00011703,2]
[404667879,1770402638257,-213.32,0.0001201,2]
[404667880,1770402638267,-425.71181716,0.00012096,2]
[404667881,1770402638277,-11177.03195936,0.0001215,2]
[404667882,1770402638287,-236.9,0.00012235,2]
[404667883,1770402638298,-988.7,0.00012438,2]
[404667884,1770402638308,-150.0,0.00012691,2]
[404667885,1770402638318,-150.0,0.00012691,2]
[404667886,1770402638329,-150.0,0.00012691,2]
[404667887,1770402638340,-150.0,0.00012691,2]
[404667888,1770402638350,-150.0,0.00012691,2]
[404667889,1770402638360,-150.0,0.00012746,2]
[404667890,1770402638370,-236.9,0.00012767,2]
[404667891,1770402638380,-200.0,0.00012801,2]
[404667892,1770402638390,-584.4,0.00012888,2]
[404667893,1770402638401,-11177.03195936,0.00012942,2]
[404667894,1770402638411,-250.0,0.00012999,2]
[404667895,1770402638421,-288.85,0.00013151,2]
[404667897,1770402638431,-2299.7,0.0001325,2]
[404667899,1770402638441,-425.71181716,0.00013257,2]
[404667901,1770402638451,-252.49,0.00013258,2]
[404667903,1770402638461,-7158.18,0.00013297,2]
[404667905,1770402638472,-236.9,0.00013299,2]
[404667907,1770402638482,-500.0,0.00013698,2]
[404667909,1770402638491,-500.0,0.00013698,2]
[404667911,1770402638502,-500.0,0.00013698,2]
[404667913,1770402638511,-500.0,0.00013698,2]
[404667915,1770402638521,-500.0,0.00013698,2]
[404667917,1770402638531,-500.0,0.00013698,2]
[404667919,1770402638541,-500.0,0.00013698,2]
[404667920,1770402638553,-500.0,0.00013698,2]
[404667921,1770402638562,-500.0,0.00013698,2]
[404667922,1770402638572,-500.0,0.00013698,2]
[404667923,1770402638584,-500.0,0.00013698,2]
[404667924,1770402638594,-500.0,0.00013698,2]
[404667925,1770402638604,-500.0,0.00013698,2]
[404667926,1770402638615,-500.0,0.00013698,2]
[404667927,1770402638626,-500.0,0.00013698,2]
[404667928,1770402638636,-500.0,0.00013698,2]
[404667929,1770402638646,-500.0,0.00013698,2]
[404667930,1770402638656,-500.0,0.00013698,2]
[404667931,1770402638666,-532.65205018,0.00013698,2]
[404667932,1770402638675,-283.9117133,0.00013698,2]
[404667933,1770402638686,-491.51300143,0.00013698,2]
[404667934,1770402638697,-569.02985268,0.00013698,2]
[404667935,1770402638706,-13456.85,0.00013699,2]
[404667936,1770402638717,-11177.03195936,0.00013733,2]
[404667937,1770402638726,-236.9,0.00013831,2]
[404667938,1770402638736,-924.7611406,0.00013838,2]
[404667939,1770402638746,-1107.63711259,0.00013838,2]
[404667940,1770402638756,-236.9,0.00014363,2]
[404667941,1770402638766,-425.71181716,0.00014418,2]
[404667942,1770402638776,-11177.03195936,0.00014525,2]
[404667943,1770402638786,-250.0,0.00015,2]
[404667944,1770402638796,-2052.7152301,0.00015,2]
[404667945,1770402638805,-7991.45940556,0.00015,2]
[404667946,1770402638815,-11177.03195936,0.00015317,2]
[404667947,1770402638824,-1910.41,0.00015535,2]
[404667948,1770402638836,-209.57,0.00015535,2]
[404667949,1770402638846,-425.71181716,0.00015579,2]
[404667950,1770402638856,-2242.664997,0.00015807,2]
[404667951,1770402638866,-3319.5632726,0.00016,2]
[404667952,1770402638880,-247.48,0.00016047,2]
[404667953,1770402638889,-5499.48,0.00016047,2]
[404667954,1770402638899,-150.0,0.00016047,2]
[404667955,1770402638910,-1600.0,0.00016047,2]
[404667956,1770402638920,-11177.03195936,0.00016108,2]
[404667957,1770402638931,-3240.0,0.00016134,2]
[404667958,1770402638941,-366372.30455527,0.000162,5]
[404667959,1770402638953,-1249.16938215,0.00016202,2]
[404667960,1770402638963,-453.98370731,0.00016438,2]
[404667961,1770402638973,-227.37,0.00016438,2]
[404667962,1770402638984,-500.0,0.0001665,2]
[404667963,1770402638993,-425.71181716,0.00016739,2]
[404667964,1770402639003,-11177.03195936,0.000169,2]
[404667965,1770402639013,-500.0,0.00017,2]
[404667966,1770402639023,-300.0,0.00017,2]
[404667967,1770402639033,-44973.23781844,0.00017,2]
[404667968,1770402639043,-271950.54601369,0.00017,2]
[404667969,1770402639060,-496.6280388,0.00017,2]
[404667970,1770402639071,-2465.20947077,0.00017,2]
[404667971,1770402639084,-71030.83479422,0.00017,2]
[404667972,1770402639096,-2053.64958982,0.00017,2]
[404667973,1770402639107,-2700.67980349,0.00017,2]
[404667977,1770402640205,-695.33,0.00010162,2]
[404667978,1770402641387,200.0,0.0003561,120]
[404667988,1770402643708,-2865.3744,0.00010162,2]
[404667989,1770402643723,-16568.64490263,0.00017,2]
[404667990,1770402643733,-300.0,0.0001736,2]
[404667992,1770402643744,-410.6868842,0.00017361,2]
[404667993,1770402643754,-95577.99302885,0.00017361,2]
[404667994,1770402643768,-699.49,0.00017361,2]
[404667995,1770402644437,-1319.0,0.00017361,2]
[404668033,1770402646218,-707.78839989,0.00017361,2]
[404668037,1770402653692,5000.01,9.866e-05,2]
[404668038,1770402653716,5000.01,9.866e-05,2]
[404668039,1770402653741,5000.01,9.866e-05,2]
[404668040,1770402653765,5000.01,9.866e-05,2]
[404668041,1770402653794,5000.01,9.866e-05,2]
[404668042,1770402653818,5000.01,9.866e-05,2]
[404668043,1770402653842,5000.01,9.866e-05,2]
[404668044,1770402653866,5000.01,9.866e-05,2]
[404668045,1770402653893,5000.01,9.866e-05,2]
[404668046,1770402653918,5000.01,9.866e-05,2]
[404668047,1770402662750,1922.0,0.0003561,120]
[404668048,1770402663570,1117.0,0.0003561,120]
[404668050,1770402723753,451.87493129,0.0003561,120]
[404668051,1770402762499,-1796.292,9.668e-05,2]
[404668052,1770402762530,-151.771,9.668e-05,2]
[404668053,1770402903383,7254.85041535,0.00030137,120]
[404668054,1770402903416,5019.89363055,0.00035616,120]
[404668055,1770402903447,8739.9425587,0.00035616,120]
[404668056,1770402938969,-405.01754,9.715e-05,2]
[404668057,1770402976300,126.29645237,9.666e-05,2]
[404668058,1770402976327,293.47590332,9.666e-05,2]
[404668059,1770402976358,1933.34310705,9.666e-05,2]
[404668060,1770402976382,1103.884,9.666e-05,2]
[404668061,1770402976404,5000.01,9.666e-05,2]
[404668062,1770402976427,5000.01,9.666e-05,2]
[404668063,1770402976450,5000.01,9.666e-05,2]
[404668064,1770402976471,5000.01,9.666e-05,2]
[404668065,1770402976494,5000.01,9.666e-05,2]
[404668067,1770403142835,300.0,0.00035616,120]
[404668068,1770403293243,1437.033,9.472e-05,2]
[404668069,1770403293308,151.771,9.472e-05,2]
[404668070,1770403458893,-6342.0423,9.566e-05,2]
[404668071,1770403458914,-661.9577,9.566e-05,2]
[404668072,1770403501716,1200.0,9.565e-05,2]
[404668074,1770403578840,500.0,9.466e-05,2]
[404668075,1770403600084,3300.01,9.564e-05,2]
[404668076,1770403600110,5000.01,9.564e-05,2]
[404668077,1770403600135,5000.01,9.564e-05,2]
[404668078,1770403600159,5000.01,9.564e-05,2]
[404668079,1770403600183,5000.01,9.564e-05,2]
[404668080,1770403600205,5000.01,9.564e-05,2]
[404668081,1770403600228,5000.01,9.564e-05,2]
[404668082,1770403600251,10000.01,9.564e-05,2]
[404668083,1770403600274,10000.01,9.564e-05,2]
[404668084,1770403600297,10000.01,9.564e-05,2]
[404668085,1770403600320,10000.01,9.564e-05,2]
[404668086,1770403600344,10000.01,9.564e-05,2]
[404668087,1770403600367,10000.01,9.564e-05,2]
[404668088,1770403600392,10000.01,9.564e-05,2]
[404668089,1770403600416,10000.01,9.564e-05,2]
[404668090,1770403600439,10000.01,9.564e-05,2]
[404668091,1770403600463,10000.01,9.564e-05,2]
[404668101,1770403832154,-374.7451931,9.464e-05,2]
[404668102,1770403832208,-152337.00750321,9.464e-05,2]
[404668103,1770403832219,-576.41458267,9.464e-05,2]
[404668104,1770403832230,-271.90586894,9.464e-05,2]
[404668105,1770403832321,-114703.65585318,9.464e-05,2]
[404668114,1770403838227,-21248.26069451,9.464e-05,2]
[404668115,1770403838239,-258.6,9.464e-05,2]
[404668116,1770403838251,-383.736,9.464e-05,2]
[404668117,1770403838280,-497.30227216,9.464e-05,2]
[404668118,1770403838388,-1155271.38578739,9.464e-05,2]
[404668119,1770403838441,-450.61039595,9.464e-05,2]
[404668120,1770403838453,-321.28548552,9.464e-05,2]
[404668121,1770403838464,-7328.0,9.464e-05,2]
[404668131,1770403840278,-353.3280795,9.464e-05,2]
[404668132,1770403840487,-1707.38061209,9.464e-05,2]
[404668133,1770403840541,-43916.38167178,9.464e-05,2]
[404668134,1770403840551,-150.0,9.537e-05,2]
[404668135,1770403840560,-229.0,9.537e-05,2]
[404668136,1770403840570,-597.0702998,9.561e-05,2]
[404668137,1770403840580,-151.0,9.561e-05,2]
[404668138,1770403840591,-151.0,9.561e-05,2]
[404668139,1770403840601,-151.0,9.561e-05,2]
[404668140,1770403840611,-300.0,9.562e-05,2]
[404668141,1770403840620,-1200.0,9.562e-05,2]
[404668142,1770403840630,-191.0,9.563e-05,2]
[404668143,1770403840640,-150.0,9.563e-05,2]
[404668144,1770403840650,-300.0,9.563e-05,2]
[404668146,1770403840659,-213.57363929,9.563e-05,2]
[404668149,1770403840669,-500.0,9.563e-05,2]
[404668151,1770403840678,-329.41024821,9.563e-05,2]
[404668153,1770403840688,-435.56014357,9.563e-05,2]
[404668155,1770403840698,-221.28848559,9.563e-05,2]
[404668157,1770403840708,-500.0,9.563e-05,2]
[404668159,1770403840717,-500.0,9.563e-05,2]
[404668161,1770403840726,-500.0,9.563e-05,2]
[404668163,1770403840736,-315.47510582,9.563e-05,2]
[404668165,1770403840746,-500.0,9.563e-05,2]
[404668167,1770403840755,-500.0,9.563e-05,2]
[404668169,1770403840765,-226.88527749,9.563e-05,2]
[404668171,1770403840775,-250.0,9.564e-05,2]
[404668173,1770403840784,-3366699.83,9.564e-05,2]
[404668175,1770403840794,-1002.16615002,9.565e-05,2]
[404668177,1770403840803,-2007.35854959,9.565e-05,2]
[404668179,1770403840812,-3033.0869783,9.565e-05,2]
[404668181,1770403840822,-4123.751,9.566e-05,2]
[404668182,1770403840832,-10000.0,9.566e-05,2]
[404668183,1770403840843,-6728.3003,9.566e-05,2]
[404668184,1770403840852,-2500.0,9.566e-05,2]
[404668185,1770403840861,-250.0,9.589e-05,2]
[404668186,1770403840871,-1000.0,9.665e-05,2]
[404668187,1770403840880,-151.0,9.763e-05,2]
[404668188,1770403840890,-7904.2715,9.766e-05,2]
[404668189,1770403840900,-310.94,9.766e-05,2]
[404668190,1770403840910,-150.99,9.766e-05,2]
[404668191,1770403840920,-1539.94,9.766e-05,2]
[404668192,1770403840929,-9999.99,9.766e-05,2]
[404668193,1770403840939,-1183.0,9.766e-05,2]
[404668194,1770403840948,-251721.14,9.766e-05,2]
[404668195,1770403840958,-427.71,9.766e-05,2]
[404668196,1770403840968,-3634.47,9.766e-05,2]
[404668197,1770403840977,-9999.99,9.766e-05,2]
[404668198,1770403840987,-299.99,9.766e-05,2]
[404668199,1770403840997,-5491.36,9.766e-05,2]
[404668200,1770403841007,-2006.11,9.766e-05,2]
[404668201,1770403841016,-9999.99,9.766e-05,2]
[404668202,1770403841026,-150.99,9.766e-05,2]
[404668203,1770403841035,-23418.35,9.766e-05,2]
[404668204,1770403841045,-9999.99,9.766e-05,2]
[404668205,1770403841054,-9999.99,9.766e-05,2]
[404668206,1770403841064,-9999.99,9.766e-05,2]
[404668207,1770403841073,-14015.2,9.766e-05,2]
[404668208,1770403841083,-999.99,9.766e-05,2]
[404668209,1770403841092,-1470.95,9.766e-05,2]
[404668210,1770403841103,-349.08,9.766e-05,2]
[404668211,1770403841112,-7124.74,9.766e-05,2]
[404668212,1770403841121,-1621.47,9.766e-05,2]
[404668213,1770403841131,-190.51319598,9.962e-05,2]
[404668214,1770403841140,-166.67,9.999e-05,2]
[404668215,1770403841149,-151.0,0.0001,2]
[404668216,1770403841159,-151.0,0.0001,2]
[404668217,1770403841168,-151.0,0.0001,2]
[404668218,1770403841187,-151.0,0.0001,2]
[404668219,1770403841198,-151.0,0.0001,2]
[404668220,1770403841207,-151.0,0.0001,2]
[404668221,1770403841217,-151.0,0.0001,2]
[404668222,1770403841226,-151.0,0.0001,2]
[404668223,1770403841236,-151.0,0.0001,2]
[404668224,1770403841245,-151.0,0.0001,2]
[404668225,1770403841254,-263.53,0.0001,2]
[404668226,1770403841265,-613.67515491,0.0001,2]
[404668227,1770403841274,-151.0,0.0001,2]
[404668228,1770403841283,-151.0,0.0001,2]
[404668229,1770403841293,-151.0,0.0001,2]
[404668230,1770403841303,-151.0,0.0001,2]
[404668231,1770403841312,-151.0,0.0001,2]
[404668232,1770403841322,-151.0,0.0001,2]
[404668233,1770403841331,-151.0,0.0001,2]
[404668234,1770403841342,-151.0,0.0001,2]
[404668235,1770403841352,-151.0,0.0001,2]